Cogmind - Beta 9.2 @@@ ROGUE MODE // 2019.11.12 @ 20:32:01 Player: Fleshy Vegetable Bird Result: Destroyed by as-62979 with Assembled Heavy Rifle Performance ------------- Evolutions (0) 0 Regions Visited (2) 400 Robots Destroyed (24) 120 Value Destroyed (326) 326 Prototype IDs (0) 0 Alien Tech Used (0) 0 Bonus (0) 0 TOTAL SCORE: 846 Bonus ------- None Cogmind --------- Core Integrity 0/250 Matter 172/300 Energy 100/100 System Corruption 0% Temperature Cool (172) Movement Core (1200) Ox23 Location -10/Mines Parts ------- > --- POWER (1) -------- (None) > --- PROPULSION (2) --- (None) > --- UTILITY (2) ------ High-capacity Storage Unit High-capacity Storage Unit > --- WEAPON (2) ------- Improved Light Cannon Improved Light Cannon > --- INVENTORY (20) --- Wheel Combat Airjet High-capacity Storage Unit Hacking Suite Medium Laser Particle Cannon Particle Cannon Mining Laser Peak State ------------ > --- POWER ------------ Light Ion Engine > --- PROPULSION ------- Wheel Wheel > --- UTILITY ---------- High-capacity Storage Unit High-capacity Storage Unit > --- WEAPON ----------- EM Pulse Gun Medium Laser > --- INVENTORY -------- Light Ion Engine Light Ion Engine Wheel Wheel Wheel Wheel High-capacity Storage Unit Hacking Suite Heavy EM Pulse Gun Heavy EM Pulse Gun Heavy EM Pulse Gun Heavy EM Pulse Gun Medium Laser Mining Laser [Rating: 9] Favorites ----------- Power Light Ion Engine Engine Light Ion Engine Propulsion Wheel Wheel Wheel Utility High-capacity Storage Unit Storage High-capacity Storage Unit Weapon EM Pulse Gun Energy Gun EM Pulse Gun Energy Cannon Particle Cannon Ballistic Gun Assault Rifle Ballistic Cannon Improved Light Cannon Special Weapon Mining Laser Build | -11 -10 -10 ------- Run | Scr Mat Min Slots Evolved . | . . . Power . | . . . Propulsion . | . . . Utility . | . . . Weapon . | . . . Parts Attached 35 | 9 14 12 Power 5 | 1 2 2 Engine 5 | 1 2 2 Core . | . . . Reactor . | . . . Propulsion 6 | 3 2 1 Treads . | . . . Leg . | . . . Wheel 6 | 3 2 1 Hover . | . . . Flight . | . . . Utility 5 | 2 2 1 Device . | . . . Storage 5 | 2 2 1 Processor . | . . . Hackware . | . . . Protection . | . . . Artifact . | . . . Weapon 19 | 3 8 8 Energy Gun 7 | 1 2 4 Energy Cannon 2 | . . 2 Ballistic Gun 6 | 2 4 . Ballistic Cannon 2 | . . 2 Launcher . | . . . Special Weapon 2 | . 2 . Impact Weapon . | . . . Slashing Weapon . | . . . Piercing Weapon . | . . . Special Melee Weapon . | . . . Unidentified Prototypes . | . . . Parts Lost 12 | . . 12 Power 3 | . . 3 Propulsion 3 | . . 3 Utility . | . . . Weapon 6 | . . 6 Highest Loss Streak 12 | . . 12 Average Slot Usage (%) 97 | . 100 88 Engine 13 | . 14 10 Wheel 26 | . 28 21 Storage 28 | . 28 28 Energy Gun 16 | . 15 21 Ballistic Gun 9 | . 11 . Special Weapon 1 | . 1 . Naked Turns . | . . . Heaviest Build 77 | 14 71 77 Greatest Support 26 | 26 20 20 Greatest Overweight (x) 7 | . 3 7 Average Overweight (x) 2 | . 2 3 Largest Inventory Capacity 20 | 8 20 20 Average Capacity 16 | 6 16 20 Most Carried 18 | 7 18 16 Average Carried 10 | 3 10 13 Final Capacity 20 | 8 20 20 Final Carried 15 | 7 15 8 Class Distribution -------------------- 73% | Hauler-Mutant 20% | Mutant 6% | Scavenger-Mutant Dominant Class ---------------- Hauler-Mutant | -10/Materials Hauler-Mutant | -10/Mines Resources | -11 -10 -10 ----------- Run | Scr Mat Min Matter Collected 578 | 264 284 30 Remotely . | . . . Salvage Created 554 | 120 314 120 Parts 52 | 11 37 4 Haulers Intercepted 1 | . 1 . Recyclers Shooed 1 | . 1 . Parts Field Recycled . | . . . Retrieved Matter . | . . . Parts Self-Destructed . | . . . Prevented . | . . . Kills | -11 -10 -10 ------- Run | Scr Mat Min Combat Hostiles Destroyed 16 | . 11 5 Guns 12 | . 11 1 Cannons 3 | . . 3 AOE 1 | . . 1 Classes Destroyed 10 | 2 6 2 Worker 1 | . 1 . Tunneler 3 | 3 . . Hauler 1 | . 1 . Recycler 1 | 1 . . Operator 1 | . 1 . Watcher 1 | . 1 . Swarmer 9 | . 9 . Grunt 2 | . 2 . Demolisher 2 | . . 2 Assembled 3 | . . 3 Best Kill Streak 3 | 2 3 3 Combat Bots Only 3 | . 3 3 Max Kills in Single Turn 1 | 1 1 1 Gunslinging . | . . . Exploded 1 | . . 1 Melee . | . . . Uniques/NPCs Destroyed . | . . . Combat | -11 -10 -10 -------- Run | Scr Mat Min Damage Taken 1504 | . 386 1118 Core 252 | . 66 186 Absorbed by Shields . | . . . Core Remaining (%) 100 | 100 . . Volleys Fired 62 | 4 43 15 Largest 2 | 2 2 2 Hottest 136 | 40 100 136 Shots Fired 118 | 8 83 27 Gun 97 | 8 80 9 Cannon 18 | . . 18 Launcher . | . . . Special 3 | . 3 . Kinetic 86 | 8 66 12 Thermal 17 | . 10 7 Explosive . | . . . Electromagnetic 15 | . 7 8 Robot Hit Streak 7 | 4 7 5 Robot Miss Streak 6 | 1 6 4 Penetration Max . | . . . Secondary Targets 2 | . 2 . Max Gunslinging Chain 1 | . 1 . Shots Hit Robots 66 | 4 46 16 Core Hits 34 | 5 21 8 Critical Hits . | . . . Critical Kills . | . . . Critical Parts Destroyed . | . . . Melee Attacks . | . . . Impact . | . . . Slashing . | . . . Piercing . | . . . Sneak Attacks . | . . . Combat Hostiles . | . . . Follow-up Attacks . | . . . Damage Inflicted 916 | 46 573 297 Guns 661 | 46 549 66 Cannons 159 | . . 159 Explosions 72 | . . 72 Melee . | . . . Ramming . | . . . Kinetic 562 | 46 419 97 Thermal 220 | . 73 147 Explosive . | . . . Electromagnetic 134 | . 81 53 Impact . | . . . Slashing . | . . . Piercing . | . . . Highest Corruption . | . . . Average Corruption . | . . . Corruption Purged . | . . . Overload Shots . | . . . Overflow Damage . | . . . Projectiles . | . . . Explosions . | . . . Melee . | . . . Knockbacks 1 | . . 1 Impact . | . . . Kinetic 1 | . . 1 Secondary . | . . . Self-Inflicted Damage . | . . . Shots . | . . . Rammed . | . . . Targets Rammed . | . . . Kicked . | . . . Crushed . | . . . Highest Temperature 225 | . 60 225 Average Temperature 58 | . 19 102 Received Heat Transfer 54 | . 54 . Siege Activations . | . . . Robots Corrupted . | . . . Combat Hostiles . | . . . Parts Fried . | . . . Impact Corruptions . | . . . Robots Melted . | . . . Combat Hostiles . | . . . Parts Melted . | . . . Heat Transferred 396 | . 198 198 Parts Sabotaged . | . . . Parts Stolen . | . . . Parts Stripped . | . . . Power Chain Reactions 1 | . . 1 Missiles Intercepted . | . . . Alert | -11 -10 -10 ------- Run | Scr Mat Min Peak Influence 314 | 20 314 30 Average Influence 120 | 7 160 8 Maximum Alert Level 1 | . 1 . Low Security (%) 85 | 100 80 100 Level 1 14 | . 19 . Level 2 . | . . . Level 3 . | . . . Level 4 . | . . . Level 5 . | . . . High Security . | . . . Max Security . | . . . Squads Dispatched 2 | . 2 . Investigation 1 | . 1 . Extermination . | . . . Reinforcement 1 | . 1 . Assault . | . . . Garrison . | . . . Intercept . | . . . Construction Impeded . | . . . Haulers Reinforced . | . . . Stealth | -11 -10 -10 --------- Run | Scr Mat Min Distress Signals . | . . . Communications Jammed . | . . . Distress Signals . | . . . Times Spotted 26 | . 20 6 Peak Tracking Total 4 | . 4 4 Tactical Retreats . | . . . Traps | -11 -10 -10 ------- Run | Scr Mat Min Traps Triggered 4 | . 4 . Indirectly . | . . . Trap Hack Attempts . | . . . Triggered . | . . . Disarmed . | . . . Reprogrammed . | . . . Reused . | . . . Traps Extracted . | . . . Installed . | . . . Triggered . | . . . Machines | -11 -10 -10 ---------- Run | Scr Mat Min Machines Disabled . | . . . Max in Single Turn . | . . . Machines Sabotaged . | . . . Garrisons Compromised . | . . . Overloaded Fab Kills . | . . . Fab Network Shutdowns . | . . . Hacking | -11 -10 -10 --------- Run | Scr Mat Min Machines Accessed 4 | . 4 . Terminals 4 | . 4 . Fabricators . | . . . Repair Stations . | . . . Recycling Units . | . . . Scanalyzers . | . . . Garrison Access . | . . . Total Hacks 13 | . 13 . Successful 7 | . 7 . Failed 6 | . 6 . Catastrophic . | . . . Database Lockouts . | . . . Manual 12 | . 12 . Terminals 13 | . 13 . Fabricators . | . . . Repair Stations . | . . . Recycling Units . | . . . Scanalyzers . | . . . Garrison Access . | . . . Terminal Hacks 2 | . 2 . Locate Traps 1 | . 1 . Recall Investigation 1 | . 1 . Fabricator Hacks . | . . . Repair Station Hacks . | . . . Recycling Unit Hacks . | . . . Scanalyzer . | . . . Garrison Access Hacks . | . . . Unauthorized Hacks 12 | . 12 . Terminals 5 | . 5 . Track 2 | . 2 . Botnet 2 | . 2 . Operators 1 | . 1 . Fabricators . | . . . Repair Stations . | . . . Recycling Units . | . . . Scanalyzers . | . . . Garrison Access . | . . . Data Cores Recovered . | . . . Used . | . . . Hacking Detections 4 | . 4 . Full Trace Events . | . . . Feedback Events . | . . . Feedback Blocked . | . . . Robot Schematics Acquired . | . . . Robots Built . | . . . Matter . | . . . Time . | . . . Total Robot Build Rating . | . . . Part Schematics Acquired . | . . . Parts Built . | . . . Matter . | . . . Time . | . . . Total Part Build Rating . | . . . Parts Repaired . | . . . Time . | . . . Parts Recycled . | . . . Recycled Matter . | . . . Retrieved Matter . | . . . Retrieved Components . | . . . Parts Scanalyzed . | . . . Part Schematics Acquired . | . . . Parts Damaged . | . . . Bothacking | -11 -10 -10 ------------ Run | Scr Mat Min Used RIF Installer . | . . . Robots Hacked . | . . . Non-combat . | . . . Combat . | . . . Robot Hacks Applied . | . . . Relay Couplers Released . | . . . Robots Rewired . | . . . Allies Hacked . | . . . Hacks Repelled . | . . . Allies | -11 -10 -10 -------- Run | Scr Mat Min Total Allies . | . . . Largest Group . | . . . Highest-Rated Group . | . . . Highest-Rated Ally . | . . . Total Orders . | . . . Ally Attacks . | . . . Total Damage . | . . . Kills . | . . . Allies Corrupted . | . . . Allies Melted . | . . . Intel | -11 -10 -10 ------- Run | Scr Mat Min Robot Analysis Total . | . . . Derelict Logs Recovered 1 | . . 1 Drone Launches . | . . . Drone Recoveries . | . . . Exploration | -11 -10 -10 ------------- Run | Scr Mat Min Turns Passed 1087 | 77 803 207 Spaces Moved 763 | 54 607 102 Core 13 | 13 . . Treads . | . . . Legs . | . . . Wheels 750 | 41 607 102 Hover . | . . . Flight . | . . . Fastest Speed 50 | 50 80 110 Average Speed 100 | 75 101 111 Slowest Speed 150 | 90 110 150 Overloaded Moves . | . . . Propulsion Burnouts . | . . . Robots Hopped . | . . . Cave-ins Triggered . | . . . Exploration Rate (%) 38 | 3 82 30 Regions Visited 2 Branch Regions 1 Pre-discovered Areas 1 | . . 1 Known Exits Taken . | . . . Unknown Exits Taken 2 | 1 1 . Scrap Searched 2 | . . 2 Spaces Dug 2 | . 2 . Terrain Destroyed 8 | . 2 6 Melee . | . . . Projectile 6 | . 2 4 AOE 2 | . . 2 Actions | -11 -10 -10 --------- Run | Scr Mat Min Total 960 | 82 711 167 Wait 53 | . 17 36 Move 761 | 53 606 102 Hop . | . . . Pick Up 37 | 15 20 2 Fast Attach . | . . . Attach 17 | 7 1 9 Detach . | . . . Swap 18 | 2 13 3 Drop 12 | 1 11 . Fire 62 | 4 43 15 Melee . | . . . Ram . | . . . Kick . | . . . Crush . | . . . Escape Stasis . | . . . Rewire . | . . . Trap . | . . . Miscellaneous . | . . . Route ------- -11/Scrapyard -10/Materials (discovered 4 exits: [*Mat x3] / [*Min]) -10/Mines History --------- Turn | Location | Event 9 | -11/Scrapyard | Discovered new exit (range 16) 78 | -11/Scrapyard | Entered Materials 301 | -10/Materials | Discovered new exit (range 6) 424 | -10/Materials | Discovered new exit (range 9) 593 | -10/Materials | Build established: Hauler-Mutant 637 | -10/Materials | Discovered new exit (range 10) 741 | -10/Materials | Discovered new exit (range 3) 881 | -10/Materials | Entered Mines 882 | -10/Mines | Learned location of Storage (-7) 915 | -10/Mines | Learned location of 1 exit from Materials 916 | -10/Mines | Met a Derelict bent on vengeance 958 | -10/Mines | Assembled infested the area 963 | -10/Mines | Assisted by a Guerilla fighting off Assembled 1031 | -10/Mines | Core integrity fell below 50% 1071 | -10/Mines | Core integrity fell below 20% 1088 | -10/Mines | Destroyed by as-62979 with Assembled Heavy Rifle Last Messages --------------- 01067_ The unstable cave ceiling collapses. 01067_ U-05 Engineer lays Concrete. 01068_ U-05 Engineer builds a Wall. 01069_ Ion Engine destroyed. 01071_ The unstable cave ceiling collapses. 01071_ as-72729 destroyed. 01072_ The unstable cave ceiling collapses. 01072_ U-05 Engineer lays Concrete. 01074_ as-09539 knocked back. 01075_ U-05 Engineer builds a Wall. 01079_ U-05 Engineer lays Concrete. 01079_ Wheel destroyed. 01080_ U-05 Engineer lays Concrete. 01082_ The unstable cave ceiling collapses. 01082_ U-05 Engineer builds a Wall. 01083_ The unstable cave ceiling collapses. 01085_ U-05 Engineer lays Concrete. 01086_ as-09539 destroyed. 01086_ U-05 Engineer lays Concrete. 01087_ The unstable cave ceiling collapses. Map ----- +----------------------------------------------------+ | ?###### =! #????????????????????????????????????? | | ?# =% ##????????????????????????????????????? | | ?# ####?????????????????????????????????????? | | ?# #####????????????????????????????????????????? | | ?# #????####????????????????????????????????????? | | ## #???## ##???????????????????????????????????? | | #??## #???????????????????????????????????? | | #??# ##??????????????????????????????????? | | #####??# ##?????????????????????????????????? | | #?????## ##????????????????????????????????? | | ####### #????????????????????????????????? | | #????????????????????????????????? | | ##### ##????????????????????????????????? | | ????# ##?????????????????????????????????? | | ????## #??????????????????????????????????? | | ?????# ##?????????????????????????????????? | | ????## #?????????????????????????????????? | | ???## #?????????????????????????????????? | | ??## #?????????????????????????????????? | | ### ##????????????????????????????????? | | #########????????????????????????? | | ! #### ###??????????????????????? | | !% " ## #####??????????????????? | | %" r #### ;#??????????????????? | | ### ### u #??????????????????? | | #### #####??# @ % ###????????????????? | | #####?????## # %!= #??????????????? | | ## #???????### ##% # #??????????? | | ### #??????## # a # #??????????? | | ??# ######?# ### #%%## % #####??????????? | | ??# ### # #?????????????? | | ??###### ## ## ## # #?????????????? | | ???????# ## ## #### # # # ##?????????????? | | ???????# ## ###?? #%# #???????????????? | | ???????##### #####?????## ### ###???????????????? | | ???????????####??????????? ???#?????????????????? | | ??????????????????????????## ????????????????????? | | ???????????????????????????? #???????????????????? | | ????????????????????????????? ???????????????????? | | ?????????????????????????????????????????????????? | | ?????????????????????????????????????????????????? | | ?????????????????????????????????????????????????? | | ?????????????????????????????????????????????????? | | ?????????????????????????????????????????????????? | | ?????????????????????????????????????????????????? | | ?????????????????????????????????????????????????? | | ?????????????????????????????????????????????????? | | ?????????????????????????????????????????????????? | | ?????????????????????????????????????????????????? | | ?????????????????????????????????????????????????? | +----------------------------------------------------+ Best States ------------- Heat Dissipation 25 Energy Generation 10 Energy Capacity 250 Matter Stores 300 Matter Capacity 300 Sight Range 16 Terrain Scan Density 10 Evasion (%) 50 Item Schematics ----------------- None Robot Schematics ------------------ None Fabricated ------------ Nothing Alien Tech Used ----------------- None Achievements -------------- None Challenges ------------ None Game ------ Seed PowerMagneticShield Manual? 0 Play Time 00:13:14 Cumulative 166.3 hours Start 2019.11.12 @ 20:21:33 End 2019.11.12 @ 20:32:01 Sessions 1 Manual Loads 0 Difficulty Rogue Special Mode None Game No. 240 Rogue 240 Adventurer 0 Explorer 0 Win Type - Total 1 Types 1/0/0/0/0/0/0 Lore% 48 Gallery% 67 Achievement% 42 Wizard Run 0 Options --------- ASCII 0 Keyboard 0 Movement Numpad Keybinds 0 Fullscreen 1 Font 16/Terminus Map View 75x55 Tactical HUD 1 Map Filters NONE Filters NONE Steam 1 RUN: 70c08a31-6159-4174-bed8-85407ebff067